bitfinex/quotes_ETHUSD_20220215
["timestamp","ask_amount","ask_price","bid_price","bid_amount"]
[1644922952348,0.128741,3111.2,3111.0,0.3]
[1644922952549,0.128741,3111.2,3110.6,1.2418]
[1644922952550,1.16964333,3111.1,3110.6,1.2418]
[1644922952748,1.16964333,3111.1,3110.5,7.7496]
[1644922952749,1.16964333,3111.1,3110.5,0.763]
[1644922952947,1.16964333,3111.1,3110.5,0.3]
[1644922953151,1.16964333,3111.1,3110.2,3.8]
[1644922953348,1.16964333,3111.1,3110.5,1.08652472]
[1644922953549,1.16964333,3111.1,3110.4,3.21434353]
[1644922953748,1.16964333,3111.1,3110.4,3.51434353]
[1644922954050,1.16964333,3111.1,3110.4,1.10373]
[1644922954248,1.16964333,3111.1,3110.3,0.3]
[1644922954448,1.16964333,3111.1,3110.4,0.98908676]
[1644922954648,1.16964333,3111.1,3110.4,0.80368]
[1644922954848,1.16964333,3111.1,3110.5,0.18544156]
[1644922955249,1.16964333,3111.1,3110.5,0.48544156]
[1644922955474,1.16964333,3111.1,3110.5,0.3]
[1644922955678,1.1721643,3111.1,3110.5,0.3]
[1644922956679,1.16964333,3111.1,3110.5,0.3]
[1644922956876,1.16964333,3111.1,3110.5,1.1037268]
[1644922957077,1.17233939,3111.1,3110.5,1.1037268]
[1644922957279,1.17233939,3111.1,3110.6,3.22496997]
[1644922957678,1.17233939,3111.1,3110.5,0.3]
[1644922957879,0.128741,3111.2,3110.5,0.3]
[1644922958080,0.128741,3111.2,3110.6,0.8037046]
[1644922958081,1.16918477,3111.1,3110.6,0.8037046]
[1644922958283,1.17188087,3111.1,3110.6,0.8037046]
[1644922959081,1.97294477,3111.1,3110.5,0.3]
[1644922959355,1.16918477,3111.0,3110.3,0.3]
[1644922959526,0.0026961,3111.1,3110.4,0.18536834]
[1644922959726,1.17195914,3111.1,3110.2,3.65056977]
[1644922959926,1.17195914,3111.1,3110.3,0.18537226]
[1644922960126,1.11459338,3111.0,3110.3,0.98914226]
[1644922960328,1.97307304,3110.9,3110.4,0.18537226]
[1644922960527,0.80381,3110.9,3110.4,0.18537226]
[1644922960729,0.00245753,3111.1,3110.4,0.18537226]
[1644922960931,0.00245753,3111.1,3110.3,0.18537226]
[1644922960932,1.17233765,3111.1,3110.3,0.18537226]
[1644922961330,1.17233765,3111.1,3110.3,0.48537226]
[1644922961331,1.97613765,3111.1,3110.3,0.48537226]
[1644922961534,1.16988012,3111.0,3110.3,0.3]
[1644922961729,1.16988012,3111.0,3110.3,0.8037891]
[1644922961928,2.41142,3111.2,3110.4,0.18548875]
[1644922961929,1.16988012,3110.9,3110.4,0.18548875]
[1644922962130,1.16988012,3110.8,3110.1,1.3]
[1644922962328,0.00245753,3111.1,3110.2,0.18550959]
[1644922962528,1.17238361,3111.1,3110.2,0.18550959]
[1644922962829,1.16992608,3111.1,3110.2,0.98926959]
[1644922963078,1.16992608,3111.1,3110.0,6.44293948]
[1644922963079,1.17238357,3111.1,3110.5,0.8037522]
[1644922963881,1.16992608,3111.0,3110.5,0.8037522]
[1644922964079,1.16992608,3110.9,3110.5,1.6074422]
[1644922964279,0.00251095,3111.1,3110.6,0.8036735]
[1644922964681,1.17265682,3111.1,3110.6,0.8036735]
[1644922964880,1.17014587,3111.0,3110.6,0.8036735]
[1644922965080,1.17014587,3110.9,3110.6,0.8036735]
[1644922965279,0.00251099,3111.1,3110.8,0.8036289]
[1644922965481,0.00251099,3111.1,3110.9,3.29146452]
[1644922965881,0.00251099,3111.1,3110.9,3.59146452]
[1644922966089,0.00251099,3111.1,3110.7,3.25497903]
[1644922966090,0.00167216,3111.1,3110.7,3.25497903]
[1644922966383,1.1701348,3111.4,3111.0,0.98812816]
[1644922966834,0.128726,3111.5,3111.1,0.17784049]
[1644922967434,0.128726,3111.5,3111.2,0.17784049]
[1644922967836,0.13122509,3111.5,3111.1,1.1035171]
[1644922968035,0.13122509,3111.5,3110.9,2.51564899]
[1644922968036,1.17754305,3111.4,3110.9,2.51564899]
[1644922968236,1.17754305,3111.4,3111.0,0.3]
[1644922968237,0.80367,3111.3,3111.0,0.3]
[1644922968637,0.13122509,3111.5,3111.0,0.3]
[1644922968937,0.00249909,3111.3,3111.0,1.103607]
[1644922969534,1.15498266,3111.4,3111.0,1.103607]
[1644922970335,1.15498266,3111.4,3111.0,1.907177]
[1644922970580,1.15498266,3111.4,3111.0,1.103607]
[1644922970780,1.13958901,3111.4,3111.0,1.103607]
[1644922970980,1.13958901,3111.4,3111.1,0.80357]
[1644922971186,0.128726,3111.5,3111.4,0.30280576]
[1644922971381,0.13122556,3111.5,3111.4,0.30280576]
[1644922972180,0.13122556,3111.5,3111.4,1.16409489]
[1644922972381,0.128726,3111.5,3111.4,1.16409489]
[1644922972985,0.00249964,3111.6,3111.4,4.66409489]
[1644922973184,0.00249964,3111.6,3111.5,5.5695024]
[1644922973383,0.00249964,3111.6,3111.5,6.5695024]
[1644922973581,0.00314203,3112.5,3111.7,0.8032]
[1644922973789,0.00314203,3112.5,3111.8,0.463]
[1644922973983,0.00305921,3112.2,3111.9,1.00366881]
[1644922974226,0.00305921,3112.2,3112.0,0.463]
[1644922974432,0.00305921,3112.2,3112.1,0.95300623]
[1644922974626,0.00305921,3112.2,3112.1,1.41053363]
[1644922974827,0.00316197,3113.1,3112.3,0.80317]
[1644922975029,0.00316197,3113.1,3112.1,1.41053363]
[1644922975030,0.00249325,3112.3,3112.1,1.41053363]
[1644922975226,0.00249325,3112.3,3112.2,3.32098065]
[1644922975626,0.00249325,3112.3,3112.2,3.62098065]
[1644922975927,0.00314203,3113.1,3112.2,3.62098065]
[1644922976127,1.994e-05,3113.0,3111.8,1.5962]
[1644922976332,0.00314203,3113.1,3111.8,1.5962]
[1644922976333,0.00249325,3112.4,3111.8,1.1332]
[1644922977230,0.80336,3112.7,3112.0,0.8033545]
[1644922977431,0.00314203,3112.6,3112.0,0.8033545]
[1644922977628,0.00249325,3112.3,3112.0,0.8033545]
[1644922977830,0.00249325,3112.3,3111.8,1.1332]
[1644922978080,0.00249325,3112.3,3111.7,7.9919]
[1644922978284,0.00249325,3112.3,3111.7,10.16981841]
[1644922978484,0.00314203,3112.4,3111.7,1.37447761]
[1644922978685,0.00269117,3112.2,3111.4,0.30280576]
[1644922979681,0.00314203,3112.4,3111.5,1.15969337]
[1644922979880,0.00269117,3112.0,3111.5,1.15969337]
[1644922980284,0.00269117,3112.0,3111.4,0.30280576]
[1644922980480,0.00269117,3112.0,3111.4,0.60280576]
[1644922980680,0.00269117,3112.0,3111.5,0.8034792]
[1644922980882,0.00314203,3112.1,3111.5,0.8034792]
[1644922981083,1.60699,3112.7,3111.5,0.8034792]
[1644922981084,0.00269117,3111.9,3111.5,0.8034792]
[1644922981282,0.00269117,3111.9,3111.5,3.96820845]
[1644922981727,0.00269117,3111.9,3111.5,4.8262886]
[1644922981928,0.00269117,3111.9,3111.5,1.6068492]
[1644922982129,0.00314203,3112.5,3111.4,0.60280576]
[1644922982333,0.00245037,3111.9,3111.4,0.60280576]
[1644922983131,0.00245037,3111.9,3111.5,1.6068785]
[1644922983331,0.00314203,3112.6,3111.5,0.8034385]
[1644922983532,0.00314203,3112.6,3111.4,1.53270576]
[1644922983533,0.00245037,3111.8,3111.4,1.53270576]
[1644922984530,6.80665513,3112.6,3111.4,2.33621886]
[1644922984531,5.00316197,3112.6,3111.4,2.33621886]
[1644922984731,0.00245037,3111.8,3111.4,2.33621886]
[1644922985331,0.00245037,3111.8,3111.4,2.63621886]
[1644922985581,0.128685,3112.5,3111.5,0.80341]
[1644922985782,0.00314203,3112.4,3111.5,0.80341]
[1644922985981,0.00250425,3111.8,3111.4,0.30280576]
[1644922986583,1.60978425,3111.8,3111.4,0.30280576]
[1644922986786,1.60728,3111.8,3111.4,0.30280576]
[1644922986983,1.60644117,3111.8,3111.4,0.30280576]
[1644922987184,1.60894542,3111.8,3111.4,0.30280576]
[1644922987385,0.80530542,3111.8,3111.4,0.30280576]
[1644922987787,0.00250425,3111.8,3111.4,0.30280576]
[1644922987985,0.00314203,3112.2,3111.4,0.30280576]
[1644922988388,0.00250425,3111.8,3111.4,0.60280576]
[1644922989225,0.00314203,3112.3,3111.4,1.77079774]
[1644922989729,0.0024922,3111.8,3111.4,1.77079774]
[1644922990128,0.0024922,3111.8,3111.4,2.57428204]
[1644922990330,0.0024922,3111.8,3111.5,3.3285811]
[1644922990530,0.00314203,3112.3,3111.6,1.0]
[1644922990730,0.00314203,3112.3,3111.7,3.24551586]
[1644922990731,0.0024922,3111.8,3111.7,3.24551586]
[1644922990928,0.0024922,3111.8,3111.6,0.3]
[1644922991127,0.0024922,3111.8,3111.4,1.77079774]
[1644922991327,0.0024922,3111.8,3111.4,2.77079774]
[1644922991529,0.0024922,3111.8,3111.6,2.4100096]
[1644922991727,1.17285386,3112.1,3111.6,2.7100096]
[1644922991728,1.16187787,3112.1,3111.6,2.7100096]
[1644922991928,0.0024922,3111.8,3111.6,2.7100096]
[1644922992134,0.0024922,3111.8,3111.7,0.80336]
[1644922992135,0.0016922,3111.8,3111.7,0.80336]
[1644922992988,1.16187787,3112.1,3111.8,0.8033632]
[1644922993185,0.00314203,3112.3,3111.8,2.7099873]
[1644922993386,0.00314203,3112.3,3111.9,0.80332]
[1644922993687,0.00314203,3112.3,3111.8,5.09640142]
[1644922993888,0.00314203,3112.3,3112.0,0.3]
[1644922994089,0.00314203,3112.3,3111.9,0.3]
[1644922994486,0.00314203,3112.3,3111.8,0.3]
[1644922994988,0.00314203,3112.3,3111.8,0.299]
[1644922995189,0.00314203,3112.7,3111.8,1.1024086]
[1644922995487,0.00314203,3112.7,3111.8,0.299]
[1644922995687,0.00314203,3112.7,3111.7,1.73660336]
[1644922995887,0.00316197,3112.8,3111.7,4.93627675]
[1644922996088,0.00314203,3112.8,3111.7,5.23627675]
[1644922996289,0.80338,3112.7,3111.7,2.83998336]
[1644922996488,0.00314203,3112.6,3111.8,0.8034035]
[1644922996733,0.00305036,3112.4,3111.8,0.8034035]
[1644922996930,0.00305036,3112.4,3111.7,0.93323336]
[1644922997128,0.00305036,3112.4,3111.5,5.64881895]
[1644922997334,0.00305036,3112.4,3111.4,0.30280576]
[1644922997335,0.80352,3112.3,3111.4,0.30280576]
[1644922997529,0.00314203,3112.2,3111.4,3.50973347]
[1644922997728,1.60703,3112.6,3111.4,0.30280576]
[1644922997729,0.00314203,3112.3,3111.4,0.30280576]
[1644922997929,1.60703,3112.5,3111.4,0.30280576]
[1644922997930,0.00305036,3112.1,3111.4,0.30280576]
[1644922998231,1.00413938,3111.7,3111.4,0.30280576]
[1644922998429,2.61149938,3111.7,3111.4,0.30280576]
[1644922998628,0.80368,3111.7,3111.4,0.30280576]
[1644922998829,7.7305,3112.6,3111.4,0.30280576]
[1644922999029,7.73051994,3112.6,3111.4,0.30280576]
[1644922999329,0.00305036,3111.7,3111.4,0.30280576]
[1644923000230,0.00305036,3111.7,3111.4,0.60280576]
[1644923000681,0.00305036,3111.7,3111.4,1.40632346]
[1644923001280,0.99470482,3112.2,3111.4,1.40632346]
[1644923001481,0.00305036,3111.7,3111.4,1.40632346]
[1644923002081,0.00305036,3111.7,3111.4,0.60280576]
[1644923002484,1.04000867,3111.7,3111.4,0.60280576]
[1644923002685,1.04305903,3111.7,3111.4,0.60280576]
[1644923003081,1.04305903,3111.7,3111.4,0.30280576]
[1644923003682,1.04000867,3111.7,3111.4,0.30280576]
[1644923004083,1.04305903,3111.7,3111.4,0.30280576]
[1644923004330,1.84673903,3111.7,3111.4,0.30280576]
[1644923004530,1.04305903,3111.7,3111.4,0.30280576]
[1644923004933,1.04000867,3111.7,3111.4,0.30280576]
[1644923005134,1.03941293,3111.7,3111.4,0.30280576]
[1644923006032,1.03636257,3111.7,3111.4,0.30280576]
[1644923006433,1.03941293,3111.7,3111.4,0.30280576]
[1644923007338,1.03636257,3111.7,3111.4,0.30280576]
[1644923007538,1.03941293,3111.7,3111.4,0.30280576]
[1644923008185,1.0385741,3111.7,3111.4,0.30280576]
[1644923008590,3.44663864,3111.7,3111.4,0.30280576]
[1644923008788,3.749689,3111.7,3111.4,0.30280576]
[1644923008988,3.07068,3111.6,3111.4,0.30280576]
[1644923009189,5.95,3111.5,3110.6,0.8035]
[1644923009393,2.60776,3111.4,3110.5,3.5]
[1644923009586,2.60776,3111.4,3110.4,7.8078]
[1644923009787,1.10388,3111.3,3110.4,7.8078]
[1644923009986,0.3,3111.3,3110.4,7.8078]
[1644923010189,0.3,3111.3,3110.2,3.5]
[1644923010391,0.86346089,3110.7,3110.2,3.5]
[1644923010589,0.86346089,3110.7,3110.1,1.607696]
[1644923010988,0.80385,3110.9,3110.1,1.607696]
[1644923011191,1.6077,3110.9,3110.2,0.3]
[1644923011591,1.6077,3110.9,3110.1,0.60520099]
[1644923011835,1.60773,3110.9,3110.1,0.75626119]
[1644923012035,2.154486,3110.8,3110.2,0.1510602]
[1644923012233,2.154486,3110.8,3110.3,0.1510602]
[1644923012234,1.26681418,3110.8,3110.3,0.1510602]
[1644923012435,2.07069418,3110.8,3110.4,0.1510602]
[1644923012635,2.07069418,3110.8,3110.5,0.1510602]
[1644923012837,2.05530053,3110.8,3110.6,0.1510602]
[1644923013038,2.05530053,3110.8,3110.7,0.1510602]
[1644923013238,3.27275356,3110.8,3110.7,0.1510602]
[1644923013636,2.46887356,3110.8,3110.7,0.1510602]
[1644923014237,1.68040721,3110.8,3110.7,0.1510602]
[1644923014440,0.46295418,3110.8,3110.7,0.1510602]
[1644923014638,0.31295418,3110.8,3110.7,0.1510602]
[1644923014839,3.1139,3111.2,3110.7,0.1510602]
[1644923015039,3.91773,3111.2,3110.7,0.1510602]
[1644923015238,2.82574639,3111.1,3110.8,0.1510602]
[1644923015481,1.21808639,3111.0,3110.9,0.1510602]
[1644923015884,2.3632448,3111.0,3110.9,0.1510602]
[1644923016081,3.9709548,3111.0,3110.9,0.1510602]
[1644923016283,3.1670748,3111.0,3110.9,0.1510602]
[1644923016982,2.02191639,3111.0,3110.9,0.1510602]
[1644923017193,3.1139,3111.2,3110.9,0.14262612]
[1644923017384,0.80368,3111.5,3110.4,0.60520099]
[1644923017586,0.00304982,3111.7,3110.6,0.60520099]
[1644923017884,0.00304982,3111.7,3110.7,4.31126978]
[1644923018084,1.08697534,3111.7,3110.7,4.31126978]
[1644923018585,0.00305002,3111.7,3111.2,0.8035731]
[1644923019085,0.00305002,3111.7,3111.2,1.1035731]
[1644923019331,0.00314203,3111.8,3111.2,1.1035731]
[1644923019532,0.00305031,3111.7,3111.2,1.1035731]
[1644923020434,0.80675203,3111.8,3111.2,1.1035731]
[1644923020635,0.80361,3111.7,3110.9,2.0324904]
[1644923020838,0.80666031,3111.7,3111.0,0.3]
[1644923021034,0.80369,3111.5,3111.0,0.3]
[1644923021734,0.8037,3111.5,3111.0,0.3]
[1644923022134,0.80670012,3111.7,3111.1,0.8036475]
[1644923022335,0.00305012,3111.7,3111.2,3.19965733]
[1644923022634,0.00305012,3111.7,3111.0,0.3]
[1644923022835,0.00314203,3111.8,3111.1,1.10361]
[1644923023086,0.0023679,3111.7,3111.1,4.30898048]
[1644923023287,0.0023679,3111.7,3111.2,0.8036299]
[1644923023688,0.0023679,3111.7,3111.2,0.3]
[1644923023889,0.0023679,3111.7,3111.1,0.3]
[1644923024092,1.07454879,3111.4,3110.8,0.3]
[1644923024290,1.07454879,3111.4,3110.5,8.17620099]
[1644923024489,1.07454879,3111.4,3110.5,4.071]
[1644923024888,1.07454879,3111.4,3110.5,2.02655]
[1644923024889,1.87832879,3111.4,3110.5,2.02655]
[1644923025087,1.87832879,3111.4,3110.5,1.2228]
[1644923025289,1.87832879,3111.4,3110.5,4.7228]
[1644923025488,1.87832879,3111.4,3110.5,1.2228]
[1644923025689,0.80378,3111.3,3110.5,1.2228]
[1644923025892,0.80385,3111.1,3110.5,1.2228]
[1644923026093,0.80385,3111.1,3110.5,0.3]
[1644923026290,0.80385,3111.1,3110.4,0.3]
[1644923026489,0.80385,3111.1,3110.3,0.60520099]
[1644923026742,0.8039854,3110.8,3110.1,0.60520099]
[1644923027049,0.804,3110.6,3110.1,0.60520099]
[1644923027241,2.91191,3111.2,3110.1,0.60520099]
[1644923027447,4.70105111,3111.1,3110.0,0.60520099]
[1644923027645,0.80412,3110.3,3109.8,0.60520099]
[1644923027843,0.8041221,3110.2,3109.8,0.60520099]
[1644923028047,0.80414,3110.1,3109.8,0.60520099]
[1644923028244,0.80414,3110.1,3109.7,8.07959301]
[1644923028445,0.80414,3110.1,3109.7,7.43]
[1644923028650,1.60823,3110.1,3109.7,7.43]
[1644923028846,1.60823,3110.1,3109.9,0.5]
[1644923029048,1.60739117,3110.1,3109.9,0.5]
[1644923029447,1.60739117,3110.1,3109.3,0.60520099]
[1644923029448,0.80418,3110.0,3109.3,0.60520099]
[1644923029649,0.8042,3109.8,3109.3,0.60520099]
[1644923029847,0.8042,3109.8,3108.9,0.25]
[1644923029848,0.8042,3109.8,3109.4,0.60520099]
[1644923030048,1.11386522,3109.7,3109.4,0.60520099]
[1644923030483,1.11386522,3109.7,3109.3,0.60520099]
[1644923030686,0.80422,3109.7,3109.3,0.60520099]
[1644923030886,0.8042,3109.8,3109.3,0.60520099]
[1644923032086,0.8042,3109.8,3109.3,0.90520099]
[1644923032287,0.31193515,3109.9,3109.3,0.90520099]
[1644923032488,0.31193515,3109.9,3109.3,0.60520099]
[1644923032689,0.31193515,3109.9,3109.0,3.8992528]
[1644923032690,0.8042,3109.8,3109.1,0.60520099]
[1644923032889,0.8042,3109.8,3109.0,3.1]
[1644923032890,0.80429,3109.6,3109.0,3.70520099]
[1644923033288,0.80429,3109.6,3108.8,0.04440498]
[1644923033690,1.01620293,3109.2,3108.8,0.04440498]
[1644923033894,0.78889635,3109.6,3108.8,0.84365778]
[1644923034330,0.80425,3109.5,3108.8,0.34440498]
[1644923034530,2.0714,3109.9,3108.8,0.34440498]
[1644923034531,0.03366994,3110.0,3108.8,3.54440498]
[1644923034731,0.03366994,3110.0,3108.9,0.8041282]
[1644923034930,0.03366994,3110.0,3109.0,3.31638396]
[1644923035129,0.03366994,3110.0,3109.0,3.61638396]
[1644923035330,0.03366994,3110.0,3109.0,4.6776716]
[1644923035533,0.03366994,3110.0,3109.0,6.2858016]
[1644923036132,0.03366994,3110.0,3109.1,0.8040621]
[1644923036332,0.03366994,3110.0,3109.2,3.16281763]
[1644923036535,0.03366994,3110.0,3109.0,0.3]
[1644923036536,0.83776994,3110.0,3109.0,3.71371681]
[1644923036732,0.83776994,3110.0,3108.8,0.04440498]
[1644923036733,0.83776994,3110.0,3108.8,3.83992927]
[1644923037130,1.05238645,3109.8,3108.8,3.83992927]
[1644923037332,1.05238645,3109.8,3108.8,4.33992927]
[1644923037531,0.03344057,3109.5,3108.8,4.33992927]
[1644923038185,0.03344057,3109.5,3108.8,0.84440498]
[1644923038387,0.03344057,3109.5,3108.8,0.34440498]
[1644923038790,0.03344057,3109.5,3108.8,0.04440498]
[1644923039591,0.83766057,3109.5,3108.8,0.04440498]
[1644923039790,1.64191057,3109.5,3108.8,0.04440498]
[1644923040190,0.86904194,3109.3,3108.8,0.04440498]
[1644923040390,0.83766057,3109.5,3108.8,0.04440498]
[1644923041397,0.80444,3109.3,3108.8,0.04440498]
[1644923041592,1.36823627,3109.2,3108.8,0.04440498]
[1644923041846,2.97718527,3109.2,3108.8,0.04440498]
[1644923042040,1.36823627,3109.1,3108.8,0.04440498]
[1644923042340,0.98830487,3109.0,3108.8,0.04440498]
[1644923043142,2.59719247,3109.0,3108.8,0.04440498]
[1644923043544,5.92554175,3109.0,3108.8,0.04440498]
[1644923043943,2.59719247,3109.0,3108.8,0.04440498]
[1644923044143,5.89891407,3109.0,3108.8,0.04440498]
[1644923044350,3.29268292,3108.9,3108.8,0.04440498]
[1644923044743,2.59719247,3109.0,3108.8,0.04440498]
[1644923045143,1.79274487,3109.0,3108.8,0.04440498]
[1644923046787,2.59715237,3109.0,3108.8,0.04440498]
[1644923046991,1.6088475,3109.0,3108.8,0.04440498]
[1644923047590,0.02675321,3108.9,3108.8,0.04440498]
[1644923050147,3.86436512,3109.1,3108.8,0.04440498]
[1644923050345,7.15693431,3109.1,3108.8,0.04440498]
[1644923050946,0.80444,3109.0,3108.8,0.04440498]
[1644923051548,1.60887,3109.0,3108.8,0.04440498]
[1644923052153,0.02876335,3108.9,3108.8,0.04440498]
[1644923052349,0.03567094,3108.9,3108.8,0.04440498]
[1644923054884,0.02027729,3108.9,3108.8,0.04440498]
[1644923056733,3.30976696,3108.9,3108.8,0.04440498]
[1644923057136,0.02027729,3108.9,3108.8,0.04440498]
[1644923057536,1.10444,3109.0,3108.8,0.04440498]
[1644923058737,0.80444,3109.0,3108.8,0.04440498]
[1644923059138,0.31333492,3109.1,3108.8,0.04440498]
[1644923059538,0.80423,3109.2,3108.8,0.04440498]
[1644923059740,15.0,3109.6,3108.8,0.04440498]
[1644923060045,7.0,3109.5,3108.8,0.04440498]
[1644923060243,7.0,3109.5,3108.9,0.463]
[1644923060506,0.97567753,3109.8,3108.9,1.2671283]
[1644923060706,0.97567753,3109.8,3108.9,1.5671283]
[1644923060908,0.97567753,3109.8,3108.9,2.5671283]
[1644923061111,1.77981753,3109.8,3108.9,2.5671283]
[1644923061306,1.77981753,3109.8,3108.9,5.263]
[1644923061307,0.80416,3109.6,3108.9,5.263]
[1644923061508,0.80415,3109.5,3108.9,4.263]
[1644923061705,0.80415,3109.5,3108.9,0.763]
[1644923062307,0.80415,3109.5,3109.0,3.34503012]
[1644923063508,0.80415,3109.5,3108.9,1.1041456]
[1644923063707,0.80415,3109.5,3108.9,0.3]
[1644923063708,1.60835,3109.5,3108.9,0.3]
[1644923063907,1.60835,3109.5,3108.8,4.87196969]
[1644923064335,0.80415,3109.5,3108.8,4.87196969]
[1644923064737,0.80415,3109.5,3108.8,3.27196969]
[1644923064935,0.80415,3109.5,3108.8,4.07612969]
[1644923065342,0.80415,3109.5,3108.7,0.00684501]
[1644923065938,1.60848,3109.4,3108.7,0.00684501]
[1644923066137,0.80433,3109.3,3108.7,0.00684501]
[1644923066338,0.97567753,3109.8,3108.8,1.60821]
[1644923066539,0.97567753,3109.8,3108.9,3.64001117]
[1644923066739,0.97567753,3109.8,3108.7,3.6137196]
[1644923066937,0.97567753,3109.8,3108.9,0.80413]
[1644923066938,1.77980753,3109.8,3108.9,0.80413]
[1644923067140,1.77980753,3109.8,3109.0,3.21593601]
[1644923067337,1.77980753,3109.8,3109.0,0.3]
[1644923067540,0.97567753,3109.8,3109.0,1.1040806]
[1644923067740,0.97567753,3109.8,3109.0,1.6081706]
[1644923067741,1.77976753,3109.8,3109.0,1.6081706]
[1644923068385,2.58388753,3109.8,3109.1,0.3]
[1644923068590,1.77976753,3109.8,3109.1,0.3]
[1644923068786,1.77976753,3109.8,3108.8,0.6]
[1644923068989,1.77976753,3109.8,3108.8,1.3]
[1644923069186,0.8042,3109.7,3108.7,0.00684501]
[1644923069587,0.80425,3109.4,3108.7,0.00684501]
[1644923069987,0.97567753,3109.8,3108.7,0.00684501]
[1644923070691,0.80412,3109.6,3108.9,0.8041562]
[1644923071290,0.80412,3109.6,3109.0,0.3]
[1644923071745,1.60829,3109.6,3108.9,0.8041542]
[1644923072143,1.60829,3109.6,3109.0,0.3]
[1644923072344,1.36811486,3109.5,3109.0,0.3]
[1644923072545,0.80417,3109.5,3109.0,0.3]
[1644923072744,0.80417,3109.5,3108.8,1.10417]
[1644923072947,0.80424,3109.3,3108.8,0.3]
[1644923073248,0.80417,3109.5,3108.7,0.30684501]
[1644923073446,4.2605,3110.2,3108.7,0.30684501]
[1644923073647,0.80418,3109.5,3108.8,0.04440498]
[1644923074046,1.60839,3109.5,3108.8,0.84858128]
[1644923074246,1.60839,3109.5,3108.9,0.6]
[1644923074445,0.80418,3109.5,3108.9,0.6]
[1644923074846,0.80418,3109.5,3108.9,0.3]
[1644923075587,0.80418,3109.5,3108.8,0.80419]
[1644923076287,3.2166,3110.0,3108.8,0.3]
[1644923076487,1.36809242,3109.9,3108.7,0.00684501]
[1644923076687,5.53085049,3109.9,3108.9,0.04440336]
[1644923076888,1.03719537,3109.7,3108.9,0.04440336]
[1644923077086,3.5127132,3110.1,3108.9,0.04440336]
[1644923077087,1.36809242,3109.6,3108.9,0.04440336]
[1644923077288,1.60829,3110.1,3108.9,0.04440336]
[1644923077490,0.80411,3109.9,3108.9,0.04440336]
[1644923077690,1.36804464,3109.8,3108.9,0.04440336]
[1644923077890,1.36804464,3109.8,3108.9,1.65270336]
[1644923077891,2.17216464,3109.8,3108.9,1.65270336]
[1644923078091,1.36804464,3109.7,3108.9,1.65270336]
[1644923078295,1.36804464,3109.7,3108.9,1.95270336]
[1644923078491,1.36804464,3109.7,3109.1,0.8041445]
[1644923078492,0.80413,3109.6,3109.1,0.8041445]
[1644923078691,1.60829,3110.0,3109.1,0.8041445]
[1644923078891,1.36802026,3109.9,3109.1,1.1041445]
[1644923079091,2.17214026,3109.9,3109.1,1.1041445]
[1644923079343,2.41242,3110.0,3109.1,1.1041445]
[1644923079344,1.36802026,3109.8,3109.1,1.1041445]
[1644923079545,1.36802026,3109.9,3109.1,1.1041445]
[1644923079744,2.17213026,3109.8,3109.1,1.4041445]
[1644923079943,2.17213026,3109.8,3109.1,0.6]
[1644923080144,1.06790997,3109.4,3109.1,0.3]
[1644923080343,0.80421,3109.7,3108.9,0.34440336]
[1644923080543,1.36807745,3109.6,3108.9,0.34440336]
[1644923080949,0.80424,3109.4,3108.9,1.14859676]
[1644923081146,2.41253,3109.8,3109.0,0.04440174]
[1644923081343,1.36806732,3109.7,3109.0,0.04440174]
[1644923081543,1.36806732,3109.6,3109.0,0.95085827]
[1644923081742,1.36806732,3109.5,3109.0,1.55085827]
[1644923081943,4.2605,3110.2,3109.1,4.6997157]
[1644923081944,0.804,3110.1,3109.1,4.6997157]
[1644923082147,1.56573114,3110.6,3109.3,1.6079]
[1644923082346,1.36784147,3110.5,3109.4,5.01413324]
[1644923082642,1.36784147,3110.4,3109.4,0.763]
[1644923082843,1.36784147,3110.3,3109.7,1.10891269]
[1644923083091,1.36784147,3110.2,3109.8,0.8039471]
[1644923083291,0.80392,3110.4,3109.9,0.80392]
[1644923083494,1.3678201,3110.3,3109.9,1.10392]
[1644923084792,1.3678201,3110.3,3109.9,1.9078124]
[1644923085393,1.14015452,3110.1,3109.9,1.9078124]
[1644923085595,1.14015452,3110.1,3109.9,1.1038924]
[1644923086000,0.80394,3110.5,3109.9,1.1038924]
[1644923086197,1.36781992,3110.4,3109.9,1.1038924]
[1644923086395,1.36781992,3110.7,3109.9,1.1038924]
[1644923086594,1.36781992,3110.6,3109.9,1.1038924]
[1644923086838,1.36781992,3110.5,3109.9,1.1038924]
[1644923087139,1.79411849,3110.3,3109.9,1.1038924]
[1644923087537,0.05027701,3110.1,3109.9,1.1038924]
[1644923087938,0.05027701,3110.1,3109.9,1.9078124]
[1644923088738,0.05027701,3110.1,3109.9,1.1038924]
[1644923089239,0.05027701,3110.1,3109.9,0.3]
[1644923089441,0.05027701,3110.1,3109.6,1.2302]
[1644923089442,1.36794024,3110.0,3109.6,1.2302]
[1644923089640,1.36794024,3110.0,3109.4,0.78625445]
[1644923089839,0.05027701,3110.1,3109.4,0.78625445]
[1644923090240,0.80405,3110.0,3109.4,0.78625445]
[1644923090688,1.6081,3110.0,3109.4,1.59030285]
[1644923091094,2.67112242,3110.0,3109.4,1.59030285]
[1644923092194,2.72133064,3110.0,3109.4,1.59030285]
[1644923092794,0.85425822,3110.0,3109.4,2.39432285]
[1644923092994,0.85425822,3110.0,3109.4,1.59030285]
[1644923093193,0.85425822,3110.0,3109.5,0.8040295]
[1644923093598,0.05020822,3110.0,3109.5,0.8040295]
[1644923093994,0.05020822,3110.0,3109.6,0.99490047]
[1644923094239,0.05020822,3110.0,3109.6,1.29490047]
[1644923094446,0.05020822,3110.0,3109.6,2.09888017]
[1644923095039,0.05020822,3110.0,3109.6,0.99490047]
[1644923095240,0.05020822,3110.0,3109.6,1.29490047]
[1644923095440,0.05020822,3110.0,3109.6,2.09889217]
[1644923095640,0.05020822,3110.0,3109.6,0.8039917]
[1644923095840,0.85425822,3110.0,3109.4,0.48625445]
[1644923096042,0.05020822,3110.0,3109.4,0.48625445]
[1644923096243,0.05020822,3110.0,3109.4,0.78625445]
[1644923096440,0.05020822,3110.0,3109.4,1.59028555]
[1644923097540,0.05020822,3110.0,3109.5,0.80398]
[1644923097742,0.85426822,3110.0,3109.4,1.29028555]
[1644923097991,0.05020822,3110.0,3109.4,1.29028555]
[1644923098391,0.05020822,3110.0,3109.4,1.59028555]
[1644923098591,0.05020822,3110.0,3109.4,2.09429555]
[1644923098798,0.05020822,3110.0,3109.5,0.8039771]
[1644923098995,0.04936988,3110.0,3109.5,0.8039771]
[1644923099792,0.04936988,3110.0,3109.4,0.48625445]
[1644923099991,0.04936988,3110.0,3109.4,1.29028275]
[1644923100195,0.85339988,3110.0,3109.4,0.48625445]
[1644923100391,0.85337988,3110.0,3109.3,1.1561]
[1644923100593,0.85337988,3110.0,3109.3,0.80402]